bitfinex/quotes_ETHUSD_20251008
["timestamp","ask_amount","ask_price","bid_price","bid_amount"]
[1759904187072,15.26158943,4451.2,4451.1,0.01]
[1759904187272,45.26158943,4451.2,4451.1,0.01]
[1759904187998,38.95263739,4451.2,4451.1,0.01]
[1759904188586,19.18216897,4451.2,4451.1,0.01]
[1759904189191,38.95316897,4451.2,4451.1,0.01]
[1759904189791,39.06858515,4451.2,4451.1,0.01]
[1759904189991,32.88033661,4450.9,4450.4,0.001]
[1759904190176,18.63772851,4450.9,4450.4,0.001]
[1759904190375,49.07622851,4450.9,4450.4,0.001]
[1759904190598,48.47053505,4450.9,4450.4,0.001]
[1759904192996,50.83753505,4450.9,4450.4,0.001]
[1759904193299,32.88058903,4450.4,4450.3,1e-08]
[1759904193502,38.14705429,4450.4,4450.3,1e-08]
[1759904193698,38.58555429,4450.4,4450.3,1e-08]
[1759904194304,9.19076096,4450.4,4450.3,1e-08]
[1759904194474,40.41522287,4450.4,4450.3,1e-08]
[1759904194788,34.80074051,4450.1,4449.1,0.01]
[1759904194973,38.14720577,4450.1,4449.1,0.01]
[1759904195171,38.58570577,4450.1,4449.1,0.01]
[1759904195810,39.03320169,4450.1,4449.1,0.01]
[1759904196014,41.23008584,4450.1,4449.1,0.01]
[1759904196310,41.11808584,4450.1,4449.1,0.01]
[1759904196897,38.57708584,4450.1,4449.1,0.01]
[1759904197097,41.11808584,4450.1,4449.1,0.01]
[1759904197305,38.12958992,4450.1,4449.1,0.01]
[1759904197506,21.28858992,4450.1,4449.1,0.01]
[1759904197817,15.78958992,4450.1,4449.1,0.01]
[1759904198124,11.73410577,4450.1,4449.1,0.01]
[1759904198419,4.60564051,4450.1,4449.1,0.01]
[1759904199315,4.60564051,4450.1,4449.3,2.24754399]
[1759904199818,4.60564051,4450.1,4449.1,0.01]
[1759904200589,4.60564051,4450.1,4449.2,2.24759496]
[1759904200824,0.4385,4450.1,4449.1,0.01]
[1759904200988,0.4385,4450.1,4449.4,2.24748521]
[1759904201523,2.68564051,4450.1,4449.3,2.24753761]
[1759904202625,2.68564051,4450.1,4449.1,0.01]
[1759904202626,0.4385,4450.1,4449.1,0.01]
[1759904202789,2.68564051,4450.1,4449.3,2.24754142]
[1759904203609,2.68564051,4450.1,4449.2,2.24759386]
[1759904203814,2.68564051,4450.1,4449.1,0.01]
[1759904206020,2.68564051,4450.1,4449.1,2.25762006]
[1759904206207,2.68564051,4450.1,4449.1,0.01]
[1759904206402,2.68564051,4450.1,4449.1,2.25763738]
[1759904208422,2.68564051,4450.1,4449.1,0.01]
[1759904208423,3.04451279,4450.1,4449.1,0.01]
[1759904208624,3.67811279,4450.1,4449.1,0.01]
[1759904210090,3.04451279,4450.1,4449.1,0.01]
[1759904210294,2.68564051,4450.1,4449.1,0.01]
[1759904213713,2.68564051,4450.1,4449.1,2.25764216]
[1759904214139,2.68764051,4450.1,4449.1,2.25764216]
[1759904214345,2.68764051,4450.1,4449.5,0.001]
[1759904215415,2.89800204,4450.1,4449.5,0.001]
[1759904216215,3.38283906,4450.1,4449.5,0.001]
[1759904217626,9.48652982,4450.1,4449.5,0.001]
[1759904221229,6.94552982,4450.1,4449.5,0.001]
[1759904221431,9.48752982,4450.1,4449.5,0.001]
[1759904223451,6.31192982,4450.1,4449.5,0.001]
[1759904223621,5.30283906,4450.1,4449.5,0.001]
[1759904225948,0.69719855,4450.1,4449.5,0.001]
[1759904226114,0.002,4450.1,4449.6,2.24738662]
[1759904226427,0.002,4450.1,4449.5,0.001]
[1759904226428,0.002,4450.1,4449.5,0.4593]
[1759904226626,0.4746,4450.1,4449.5,0.001]
[1759904227732,0.4746,4450.1,4449.5,2.24844136]
[1759904231353,2.72174051,4450.1,4449.5,0.001]
[1759904232062,3.6117895,4450.1,4449.5,0.001]
[1759904232418,0.002,4450.1,4449.5,0.001]
[1759904232618,0.4746,4450.1,4449.5,0.001]
[1759904233239,0.4746,4450.1,4449.5,2.24843106]
[1759904233551,2.72174051,4450.1,4449.5,0.001]
[1759904233854,0.4746,4450.1,4449.5,0.001]
[1759904234938,0.4746,4450.1,4449.6,2.24739057]
[1759904235147,0.4746,4450.1,4449.5,0.001]
[1759904236052,2.72174051,4450.1,4449.5,0.001]
[1759904238858,3.21861873,4450.1,4449.5,0.001]
[1759904239025,3.42922203,4450.1,4449.5,0.001]
[1759904240532,3.21861873,4450.1,4449.5,0.001]
[1759904240732,3.42923258,4450.1,4449.5,0.001]
[1759904240931,3.21861873,4450.1,4449.5,0.001]
[1759904241132,3.42923258,4450.1,4449.5,0.001]
[1759904244653,7.08909986,4450.1,4449.5,0.001]
[1759904247749,3.91449986,4450.1,4449.5,0.001]
[1759904248277,1.18209207,4450.1,4449.5,0.001]
[1759904248569,0.68521385,4450.1,4449.5,0.001]
[1759904248770,2.93235436,4450.1,4449.5,0.001]
[1759904249763,2.72174051,4450.1,4449.5,0.001]
[1759904250437,0.002,4450.1,4449.5,0.001]
[1759904250738,0.002,4450.1,4450.0,2.70749101]
[1759904251268,0.002,4450.1,4450.0,17.20749101]
[1759904256042,0.002,4450.1,4450.0,19.74849101]
[1759904257764,0.002,4450.1,4450.0,14.501]
[1759904258087,0.002,4450.1,4450.0,17.042]
[1759904258269,0.002,4450.1,4450.0,19.28919101]
[1759904258787,0.002,4450.1,4450.0,4.78919101]
[1759904259363,0.002,4450.1,4450.0,0.001]
[1759904259565,2.71804051,4450.1,4450.0,0.001]
[1759904259761,1.36058189,4450.1,4450.0,0.001]
[1759904260359,0.4709,4450.1,4450.0,0.001]
[1759904262192,2.71804051,4450.1,4450.0,0.001]
[1759904262889,0.4709,4450.1,4450.0,0.001]
[1759904264497,0.002,4450.1,4450.0,0.001]
[1759904264665,0.002,4450.1,4450.0,2.24819101]
[1759904266795,0.002,4450.1,4450.0,2.68779101]
[1759904268400,0.002,4450.1,4450.0,2.71026292]
[1759904269371,0.002,4450.1,4450.0,5.25126292]
[1759904269702,0.002,4450.1,4450.0,5.22879101]
[1759904270365,0.002,4450.1,4450.0,4.78919101]
[1759904270570,0.002,4450.1,4450.0,5.25679101]
[1759904270874,0.002,4450.1,4450.0,5.96133646]
[1759904271729,0.002,4450.1,4450.0,9.11515244]
[1759904272801,0.002,4450.1,4450.0,9.74875244]
[1759904273028,0.002,4450.1,4450.0,11.66875244]
[1759904273196,0.002,4450.1,4450.0,11.75877795]
[1759904274434,0.002,4450.1,4450.0,5.43036197]
[1759904274732,0.002,4450.1,4450.0,11.12517795]
[1759904275924,0.002,4450.1,4450.0,11.75877795]
[1759904277359,0.002,4451.0,4450.9,2.24673661]
[1759904277658,0.002,4451.0,4450.9,7.96301995]
[1759904277827,0.002,4451.0,4450.9,8.40815259]
[1759904280569,0.002,4451.0,4450.9,8.52015259]
[1759904281588,0.002,4451.0,4450.9,2.24673661]
[1759904281767,0.002,4451.0,4450.9,5.25433661]
[1759904282329,0.002,4451.0,4450.9,4.78673661]
[1759904282528,0.002,4451.0,4450.9,5.25433661]
[1759904283366,0.002,4451.0,4450.9,7.17433661]
[1759904284768,0.002,4451.0,4450.9,2.24673661]
[1759904284990,0.002,4451.0,4450.9,8.40815259]
[1759904287016,0.002,4451.0,4450.9,2.24673661]
[1759904287305,0.002,4451.0,4450.9,4.78673661]
[1759904290835,0.002,4451.0,4450.9,5.25433661]
[1759904291532,0.002,4451.0,4450.9,19.86633661]
[1759904292396,0.002,4451.0,4450.9,17.32633661]
[1759904292730,0.002,4451.0,4450.9,19.86633661]
[1759904292905,0.002,4451.0,4450.9,23.02015259]
[1759904293106,0.002,4451.0,4450.9,22.55255259]
[1759904294008,0.002,4451.0,4450.9,19.39873661]
[1759904294322,0.002,4451.0,4450.9,4.89873661]
[1759904294829,0.002,4451.0,4450.9,19.86633661]
[1759904296831,0.002,4451.0,4450.9,17.32633661]
[1759904297019,0.002,4451.0,4450.9,19.86633661]
[1759904297914,0.002,4451.0,4450.9,5.36633661]
[1759904298117,0.002,4451.0,4450.9,4.89873661]
[1759904298439,0.002,4451.0,4450.9,16.85873661]
[1759904298616,0.002,4451.0,4450.9,19.39873661]
[1759904300234,0.002,4451.0,4450.9,19.39773661]
[1759904301208,0.002,4451.0,4450.9,19.86623661]
[1759904303161,0.002,4451.0,4450.9,23.02005259]
[1759904306351,0.002,4451.0,4450.9,17.32723661]
[1759904306510,0.002,4451.0,4450.9,16.85873661]
[1759904306711,0.002,4451.0,4450.9,19.39773661]
[1759904307160,0.002,4451.0,4450.9,16.85873661]
[1759904307359,0.002,4451.0,4450.9,19.39773661]
[1759904307554,0.002,4451.0,4450.9,19.86623661]
[1759904308140,0.002,4451.0,4450.9,19.39773661]
[1759904308369,0.002,4451.0,4450.9,19.86623661]
[1759904311117,0.002,4451.0,4450.9,23.02005259]
[1759904323195,0.012,4451.9,4451.4,2.24648347]
[1759904323397,1e-08,4451.9,4451.8,7.32009838]
[1759904323693,0.01,4452.9,4452.0,2.87978149]
[1759904323892,0.01,4452.9,4452.7,5.51164435]
[1759904324194,0.01,4452.9,4452.7,8.05064435]
[1759904324568,0.01,4452.9,4452.7,23.00234435]
[1759904327800,0.01,4452.9,4452.7,24.92234435]
[1759904330000,0.01,4452.9,4452.7,25.69280549]
[1759904333623,0.01,4452.9,4452.7,25.88280549]
[1759904335208,0.01,4452.9,4452.7,19.41952837]
[1759904335413,0.01,4452.9,4452.7,25.69280549]
[1759904337634,1e-08,4453.0,4452.9,2.2457275]
[1759904337833,1e-08,4453.0,4452.9,6.72618477]
[1759904338057,1e-08,4453.0,4452.9,7.1726275]
[1759904338870,1e-08,4453.0,4452.9,21.6726275]
[1759904339854,1e-08,4453.0,4452.9,19.1346275]
[1759904340060,1e-08,4453.0,4452.9,21.6726275]
[1759904341661,1e-08,4453.0,4452.9,21.6746275]
[1759904342562,1e-08,4453.0,4452.9,21.6846275]
[1759904343066,1e-08,4453.0,4452.9,22.3182275]
[1759904343367,1e-08,4453.0,4452.9,22.4302275]
[1759904343734,1e-08,4453.0,4452.9,22.4202275]
[1759904344471,1e-08,4453.0,4452.9,19.8802275]
[1759904344764,1e-08,4453.0,4452.9,22.4202275]
[1759904346795,1e-08,4453.0,4452.9,22.4302275]
[1759904347069,1e-08,4453.7,4453.6,2.24537452]
[1759904347235,1e-08,4453.9,4453.8,0.6336]
[1759904347440,1e-08,4453.9,4453.8,5.11605273]
[1759904347662,1e-08,4453.9,4453.8,22.30777369]
[1759904348333,1e-08,4453.9,4453.8,22.43090413]
[1759904351178,1e-08,4453.9,4453.8,22.42090413]
[1759904352375,0.00200001,4453.9,4453.8,26.34418125]
[1759904354480,0.00200001,4453.9,4453.8,23.80518125]
[1759904354650,0.00200001,4453.9,4453.8,26.34418125]
[1759904356878,0.00200001,4453.9,4453.8,26.45618125]
[1759904357484,0.00200001,4453.9,4453.8,26.54612255]
[1759904358085,0.00200001,4453.9,4453.8,26.73612255]
[1759904363086,0.00200001,4453.9,4453.8,26.54612255]
[1759904363800,0.00200001,4453.9,4453.8,26.83327906]
[1759904365000,0.00200001,4453.9,4453.8,19.33724543]
[1759904365302,0.00200001,4453.9,4453.8,25.79952255]
[1759904365607,0.00200001,4453.9,4453.8,26.43312255]
[1759904365815,0.00200001,4453.9,4453.8,25.79952255]
[1759904367377,0.00200001,4453.9,4453.8,26.43312255]
[1759904367882,0.00200001,4453.9,4453.8,23.89512255]
[1759904368106,0.00200001,4453.9,4453.8,26.43312255]
[1759904368986,0.00200001,4453.9,4453.8,23.89512255]
[1759904369189,0.00200001,4453.9,4453.8,26.43312255]
[1759904369389,0.00200001,4453.9,4453.8,23.89512255]
[1759904369689,0.00200001,4453.9,4453.8,26.43312255]
[1759904369889,0.00200001,4453.9,4453.8,23.89512255]
[1759904370090,0.00200001,4453.9,4453.8,26.43412255]
[1759904374724,1e-08,4454.4,4454.3,2.87862166]
[1759904374901,1e-08,4454.4,4454.3,11.25989878]
[1759904375228,1e-08,4454.4,4454.3,11.83989878]
[1759904375429,1e-08,4454.4,4454.3,11.92983563]
[1759904375892,1e-08,4454.4,4454.3,26.42983563]
[1759904377899,1e-08,4454.4,4454.3,23.89283563]
[1759904378332,1e-08,4454.4,4454.3,26.42983563]
[1759904379435,1e-08,4454.4,4454.3,21.87195851]
[1759904381329,1e-08,4454.4,4454.3,25.79623563]
[1759904382609,1e-08,4454.4,4454.3,25.98623563]
[1759904386512,1e-08,4454.4,4454.3,26.61983563]
[1759904387722,1e-08,4454.4,4454.3,26.62083563]
[1759904388039,1e-08,4454.4,4454.3,28.21947583]
[1759904388556,1e-08,4454.4,4454.3,26.62083563]
[1759904389455,1e-08,4454.4,4454.3,28.03502498]
[1759904390332,1e-08,4454.4,4454.3,26.43083563]
[1759904391885,1e-08,4454.4,4454.3,25.65294133]
[1759904392066,1e-08,4454.4,4454.3,27.25690516]
[1759904394051,1e-08,4454.4,4454.3,24.71990516]
[1759904394258,1e-08,4454.4,4454.3,27.25690516]
[1759904394764,1e-08,4454.4,4454.3,24.71990516]
[1759904394963,1e-08,4454.4,4454.3,27.25690516]
[1759904397480,1e-08,4454.4,4454.3,25.65294133]
[1759904397656,1e-08,4454.4,4454.3,27.25625435]
[1759904398750,1e-08,4454.4,4454.3,25.65294133]
[1759904402975,1e-08,4454.4,4454.3,27.25647269]
[1759904404496,1e-08,4454.4,4454.3,24.71947269]
[1759904404700,1e-08,4454.4,4454.3,22.48234133]
[1759904404998,1e-08,4454.4,4454.3,21.87295851]
[1759904409001,1e-08,4454.4,4454.3,22.06295851]
[1759904409878,1e-08,4454.4,4454.3,19.05795851]
[1759904410097,1e-08,4454.4,4454.3,22.05605851]
[1759904410604,1e-08,4454.4,4454.3,19.51905851]
[1759904410805,1e-08,4454.4,4454.3,22.05605851]
[1759904411177,1e-08,4454.4,4454.3,21.50502166]
[1759904411374,1e-08,4454.4,4454.3,21.77612166]
[1759904411578,1e-08,4454.4,4454.3,21.86606316]
[1759904416779,1e-08,4454.4,4454.3,25.01244598]
[1759904418208,1e-08,4454.4,4454.3,25.64604598]
[1759904418598,1e-08,4454.9,4454.8,11.09113532]
[1759904418912,0.002,4455.3,4455.2,4.79816814]
[1759904419084,0.002,4455.3,4455.2,10.48155096]
[1759904419284,0.002,4455.3,4455.2,24.98155096]
[1759904419630,0.002,4455.3,4455.2,25.44265096]
[1759904420197,0.002,4455.3,4455.2,25.53256173]
[1759904420597,1e-08,4455.9,4455.8,2.8778659]
[1759904420820,1e-08,4455.9,4455.8,10.50369137]
[1759904421115,1e-08,4455.9,4455.8,7.61457629]
[1759904421282,1e-08,4455.9,4455.8,10.76095911]
[1759904422009,1e-08,4455.9,4455.8,11.84685911]
[1759904422514,1e-08,4455.9,4455.8,26.34685911]
[1759904426187,0.01,4456.9,4455.8,26.34685911]
[1759904426188,0.01,4456.9,4456.0,0.6336]
[1759904426396,0.01,4456.9,4456.8,5.39014516]
[1759904426593,0.01,4456.9,4456.8,7.92714516]
[1759904426794,0.01,4457.9,4456.8,20.65228282]
[1759904427025,0.01,4457.9,4457.8,2.243259]
[1759904427190,0.01,4457.9,4457.8,4.780259]
[1759904427395,0.01,4457.9,4457.8,5.249159]
[1759904428620,0.01,4457.9,4457.8,3.0059]
[1759904428828,0.01,4457.9,4457.8,3.0049]
[1759904429091,0.01,4457.9,4457.8,0.5809]
[1759904429416,0.01,4457.9,4457.8,3.1179]
[1759904429606,0.01,4457.9,4457.8,5.361159]
[1759904430193,0.01,4457.9,4457.8,2.824159]
[1759904430405,0.01,4457.9,4457.8,19.860159]
[1759904433542,0.01,4457.9,4457.8,17.148]
[1759904433910,0.01,4457.9,4457.8,19.391259]
[1759904434112,0.01,4457.9,4457.8,17.6169]
[1759904434746,0.01,4457.9,4457.8,19.860159]
[1759904435812,0.01,4457.9,4457.8,17.212159]
[1759904436035,0.01,4457.9,4457.8,19.748159]
[1759904437149,0.01,4457.9,4457.8,5.248159]
[1759904437644,0.01,4457.9,4457.8,19.748159]
[1759904437862,0.01,4457.9,4457.8,20.0722222]
[1759904440741,0.012,4457.9,4457.8,20.0722222]
[1759904441870,0.002,4458.4,4458.3,2.24300742]
[1759904442169,0.002,4458.4,4458.3,7.94782031]
[1759904442345,0.002,4458.4,4458.3,8.36109024]
[1759904442544,0.002,4458.4,4458.3,8.68715344]
[1759904443179,0.002,4458.4,4458.3,9.13884963]
[1759904444040,0.002,4458.4,4458.3,8.68715344]
[1759904444488,0.002,4458.4,4458.3,23.18715344]
[1759904445870,0.002,4458.4,4458.3,23.29915344]
[1759904447851,0.002,4458.4,4458.3,23.62817505]
[1759904449487,0.002,4458.4,4458.3,25.54817505]
[1759904450857,0.002,4458.4,4458.3,25.55817505]
[1759904452088,0.002,4458.4,4458.3,25.54717505]
[1759904453661,0.002,4458.4,4458.3,26.18077505]
[1759904453887,0.002,4458.4,4458.3,26.94857437]
[1759904455101,0.002,4458.4,4458.3,27.12857437]
[1759904457791,0.002,4458.4,4458.3,24.59357437]
[1759904457993,0.002,4458.4,4458.3,20.79139223]
[1759904458198,0.002,4458.4,4458.3,23.32639223]
[1759904458799,0.002,4458.4,4458.3,20.79139223]
[1759904458990,0.002,4458.4,4458.3,23.32639223]
[1759904459314,0.002,4458.4,4458.3,23.14639223]
[1759904459807,0.002,4458.4,4458.3,20.61139223]
[1759904459975,0.002,4458.4,4458.3,23.14639223]
[1759904460879,0.002,4458.4,4458.3,20.61139223]
[1759904461566,0.002,4458.4,4458.3,23.14639223]
[1759904462702,0.002,4458.4,4458.3,20.61139223]
[1759904463066,0.002,4458.4,4458.3,23.14639223]
[1759904463727,0.002,4458.4,4458.3,20.61139223]
[1759904464020,0.002,4458.4,4458.3,23.14639223]
[1759904464386,0.002,4458.4,4458.3,23.16639223]
[1759904465699,0.002,4458.4,4458.3,20.63139223]
[1759904465899,0.002,4458.4,4458.3,22.53279223]
[1759904466313,0.002,4458.4,4458.3,19.99779223]
[1759904466519,0.002,4458.4,4458.3,22.53279223]
[1759904467049,0.002,4458.4,4458.3,17.62209223]
[1759904467211,0.002,4458.4,4458.3,20.15709223]
[1759904467417,0.002,4458.4,4458.3,20.61139223]
[1759904468723,0.002,4458.4,4458.3,20.15709223]
[1759904468891,0.002,4458.4,4458.3,20.61139223]
[1759904469823,0.002,4458.4,4458.3,6.11139223]
[1759904470321,0.002,4458.4,4458.3,18.07639223]
[1759904470527,0.002,4458.4,4458.3,20.61139223]
[1759904470933,0.002,4458.4,4458.3,14.612]
[1759904471133,0.4551,4458.4,4457.9,2.2431848]
[1759904471308,0.4551,4458.4,4458.0,2.535]
[1759904471309,0.4531,4458.3,4458.0,2.535]
[1759904471515,0.4531,4458.3,4458.1,2.2430602]
[1759904471735,0.002,4458.4,4458.2,2.535]
[1759904471935,0.4531,4458.3,4457.8,0.001]
[1759904472139,0.4531,4458.3,4458.0,2.24315491]
[1759904472322,0.4531,4458.3,4458.1,2.24310611]
[1759904472642,0.002,4458.4,4458.2,2.535]
[1759904472848,0.22648153,4458.4,4458.3,2.535]
[1759904473218,0.002,4458.4,4458.3,2.535]
[1759904473609,0.4551,4458.4,4458.3,2.535]
[1759904474118,0.002,4458.4,4458.3,2.535]
[1759904474340,0.002,4458.4,4458.3,4.77800742]
[1759904475812,0.002,4458.4,4458.2,2.24305415]
[1759904476035,0.4551,4458.4,4457.8,0.001]
[1759904476248,0.4551,4458.4,4458.2,2.2430142]
[1759904476418,0.4551,4458.4,4458.3,2.535]
[1759904477111,0.4551,4458.4,4458.3,4.77800742]
[1759904477316,0.4551,4458.4,4458.3,2.535]
[1759904478253,0.002,4458.4,4458.3,2.535]
[1759904478467,0.002,4458.4,4458.3,4.77800742]
[1759904478878,0.002,4458.4,4458.3,5.23230742]
[1759904479973,0.002,4458.4,4458.3,4.77800742]
[1759904480173,0.002,4458.4,4458.3,2.24300742]
[1759904480340,0.002,4458.4,4458.3,4.77800742]
[1759904480539,0.002,4458.4,4457.8,0.001]
[1759904480935,0.002,4458.4,4458.3,2.24300742]
[1759904481159,0.4587,4458.4,4458.3,4.77800742]
[1759904481570,0.4587,4458.4,4458.2,0.112]
[1759904481869,0.002,4458.4,4458.3,2.535]
[1759904482177,0.002,4458.4,4458.3,4.77800742]
[1759904482471,0.4587,4458.4,4458.3,4.77800742]
[1759904484777,0.4587,4458.4,4458.0,0.112]
[1759904485073,0.4567,4458.3,4458.2,2.24305108]
[1759904485279,0.4567,4458.3,4458.2,4.77805108]
[1759904485972,0.002,4458.4,4458.2,2.535]
[1759904486174,0.4567,4458.3,4458.2,2.535]
[1759904486470,0.4567,4458.3,4458.0,0.112]
[1759904486640,0.4567,4458.3,4458.1,2.535]
[1759904486844,0.4567,4458.3,4458.1,4.77806393]
[1759904487079,0.4567,4458.3,4458.0,0.112]
[1759904487269,0.4567,4458.2,4458.1,2.535]
[1759904487575,0.4567,4458.2,4458.1,4.77810576]
[1759904487770,0.002,4458.4,4458.2,2.24304103]
[1759904487972,0.002,4458.4,4458.3,2.535]
[1759904488275,0.002,4458.4,4458.3,4.77800742]
[1759904488569,0.4587,4458.4,4458.3,2.535]
[1759904488955,0.4587,4458.4,4458.3,4.77800742]
[1759904489155,0.4587,4458.4,4458.3,2.535]
[1759904491070,0.4587,4458.4,4458.3,4.77800742]
[1759904491471,0.4587,4458.4,4458.3,2.535]
[1759904492455,2.70165916,4458.4,4457.4,0.001]
[1759904492775,0.112,4458.0,4457.9,1.629]
[1759904492972,0.5687,4458.0,4457.9,1.629]
[1759904493283,0.5687,4458.0,4457.5,0.112]
[1759904493492,0.5687,4458.0,4457.9,2.535]
[1759904493691,0.87689142,4458.0,4457.9,2.535]
[1759904493901,0.87689142,4458.0,4457.5,0.112]
[1759904494086,0.87689142,4458.0,4457.9,2.535]
[1759904494613,0.87689142,4458.0,4457.4,0.001]
[1759904494885,2.24320868,4457.9,4457.4,0.001]
[1759904495053,2.24320868,4457.9,4457.7,2.535]
[1759904495054,3.17095274,4457.9,4457.7,2.535]
[1759904495254,3.62765274,4457.9,4457.7,2.535]
[1759904495974,3.62765274,4457.9,4457.5,2.535]
[1759904496181,3.62765274,4457.9,4457.4,0.001]
[1759904496491,1.38444406,4457.9,4457.6,2.535]
[1759904496694,0.4567,4457.9,4457.6,2.535]
[1759904497765,0.4567,4457.9,4457.8,2.536]
[1759904501158,0.4567,4457.9,4457.8,0.001]
[1759904501361,0.4567,4457.9,4457.8,2.537]
[1759904501992,2.69990868,4457.9,4457.8,2.537]
[1759904502199,2.98109955,4457.9,4457.8,2.537]
[1759904503181,0.73789087,4457.9,4457.8,0.001]
[1759904503362,0.4567,4457.9,4457.8,2.537]
[1759904504399,2.69990868,4457.9,4457.8,2.537]
[1759904507868,0.4367,4457.9,4457.8,2.537]
[1759904508486,2.24499855,4458.4,4457.8,2.537]
[1759904508487,0.002,4458.4,4457.8,2.537]
[1759904508693,0.002,4458.4,4458.0,2.24310877]
[1759904508903,0.002,4458.4,4457.8,2.537]
[1759904509106,0.4367,4458.3,4457.9,2.24320868]
[1759904509271,0.4367,4458.3,4457.8,2.537]
[1759904509272,0.4367,4458.3,4458.0,2.24315638]
[1759904510186,0.002,4458.4,4457.8,2.537]
[1759904510388,0.4661,4458.3,4457.8,0.001]
[1759904510785,2.3861,4458.3,4457.8,0.001]
[1759904510979,0.20980859,4458.2,4457.8,0.001]
[1759904511398,0.4661,4458.1,4457.8,0.001]
[1759904511601,2.24320868,4457.9,4457.8,0.001]
[1759904511904,2.51413955,4457.9,4457.8,0.001]
[1759904512197,5.1100907,4457.9,4457.8,0.001]
[1759904515188,4.90023955,4457.9,4457.8,0.001]
[1759904515966,8.04550769,4457.9,4457.8,0.001]
[1759904516167,8.25536968,4457.9,4457.8,0.001]
[1759904518775,5.11010154,4457.9,4457.8,0.001]
[1759904520207,5.11010154,4457.9,4457.8,0.0762]
[1759904521995,0.94689286,4457.9,4457.8,0.0762]
[1759904522199,0.67596199,4457.9,4457.8,0.0762]
[1759904522406,0.4661,4457.9,4457.8,0.0762]
[1759904522899,4.87342799,4458.4,4457.8,2.6122]
[1759904522900,0.22648684,4458.4,4457.8,2.6122]
[1759904523107,0.21007087,4458.3,4457.8,2.6122]
[1759904523302,0.4661,4458.2,4457.8,2.6122]
[1759904523507,0.002,4458.4,4457.8,2.6122]
[1759904523508,0.4661,4458.1,4457.8,2.6122]
[1759904524085,3.14526814,4457.9,4457.8,0.0762]
[1759904524298,6.21571363,4457.9,4457.8,0.0762]
[1759904524522,6.42581636,4457.9,4457.8,0.0762]
[1759904524696,3.28054822,4457.9,4457.8,0.0762]
[1759904524895,6.42581636,4457.9,4457.8,0.0762]
[1759904526419,6.90989099,4457.9,4457.8,0.0762]
[1759904527115,6.90989851,4457.9,4457.8,0.0762]
[1759904527939,11.97516665,4457.9,4457.8,0.0762]
[1759904528106,8.82989851,4457.9,4457.8,0.0762]
[1759904531511,9.46349851,4457.9,4457.8,0.0762]
[1759904531717,2.87690932,4457.7,4457.4,0.001]
[1759904531905,38.54666294,4457.5,4457.4,0.001]
[1759904532106,38.636463,4457.5,4457.4,0.001]
[1759904532421,39.90950523,4457.5,4457.4,0.001]
[1759904532824,39.90950523,4457.5,4457.0,1e-08]
[1759904532825,2.87721131,4457.1,4457.0,1e-08]
[1759904533003,40.6885897,4457.1,4457.0,1e-08]
[1759904533202,41.63876433,4457.1,4457.0,1e-08]
[1759904533435,41.7287125,4457.1,4457.0,1e-08]
[1759904534240,42.33265336,4457.1,4457.0,1e-08]
[1759904534404,44.58442381,4457.1,4457.0,1e-08]
[1759904535048,14.58442381,4457.1,4457.0,1e-08]
[1759904535253,44.58442381,4457.1,4457.0,1e-08]
[1759904536025,14.58442381,4457.1,4457.0,1e-08]
[1759904536226,43.98023688,4457.1,4457.0,1e-08]
[1759904536433,41.24423688,4457.1,4457.0,1e-08]
[1759904536751,35.62123688,4457.1,4457.0,1e-08]
[1759904537142,43.98023688,4457.1,4457.0,1e-08]
[1759904537326,43.97899077,4457.1,4457.0,1e-08]
[1759904541557,44.56462184,4457.1,4457.0,1e-08]
[1759904542273,2.46126878,4457.1,4457.0,1e-08]
[1759904542476,2.91250964,4457.1,4457.0,1e-08]
[1759904542666,2.70301131,4457.1,4457.0,1e-08]
[1759904543539,4.62301131,4457.1,4457.0,1e-08]
[1759904543741,48.00306359,4457.1,4457.0,1e-08]
[1759904543941,38.57567854,4457.1,4457.0,1e-08]
[1759904544141,40.82744899,4457.1,4457.0,1e-08]
[1759904544341,13.97271713,4457.1,4457.0,1e-08]
[1759904544541,13.49004509,4457.1,4457.0,1e-08]
[1759904544770,13.40010218,4457.1,4457.0,1e-08]
[1759904545886,10.25483404,4457.1,4457.0,1e-08]
[1759904546170,8.48571301,4457.1,4457.0,1e-08]
[1759904547878,38.48571301,4457.1,4457.0,1e-08]
[1759904549283,38.4877537,4457.1,4457.0,1e-08]
[1759904549870,8.4877537,4457.1,4457.0,1e-08]
[1759904550061,14.7087537,4457.1,4457.0,1e-08]
[1759904550251,9.55837722,4457.1,4457.0,1e-08]
[1759904550446,6.5387278,4457.1,4457.0,1e-08]
[1759904550654,4.83450428,4457.1,4457.0,1e-08]
[1759904550878,2.91450428,4457.1,4457.0,1e-08]
[1759904551080,2.70501131,4457.1,4457.0,1e-08]
[1759904551458,0.4614,4457.1,4457.0,1e-08]
[1759904551657,0.002,4457.1,4457.0,1e-08]
[1759904559376,0.4614,4457.1,4457.0,1e-08]
[1759904564409,0.002,4457.1,4457.0,1e-08]
[1759904564998,0.4715,4457.1,4457.0,1e-08]
[1759904566123,0.002,4457.1,4457.0,1e-08]
[1759904566415,0.002,4457.1,4457.0,2.24366166]
[1759904566588,0.002,4457.1,4457.0,2.68356166]
[1759904566791,0.002,4457.1,4457.0,0.43990001]
[1759904566976,0.002,4457.1,4457.0,2.79556166]
[1759904567978,0.002,4457.1,4457.0,5.93937138]
[1759904568605,0.002,4457.1,4457.0,20.43937138]
[1759904569004,0.002,4457.1,4457.0,19.39166166]
[1759904569200,0.002,4457.1,4457.0,19.83156166]
[1759904570215,0.4634,4457.1,4457.0,14.61200001]